Workbook

Sheet Setup
A1: 16άρι ταμπλό | D1: Θέσεις | E1: seed
D2: 3-4 | E2: =VALUE(LEFT(F2,1)) -> 3 | F2: 3 4
A3: Διοργανωτής: | B3: Θ ΕΝΩΣΗ | E3: =VALUE(RIGHT(F2,1)) -> 4
A4: Τίτλος Τουρνουά: | B4: 1οΕ3
A5: type:
A6: Έδρα αγώνων: | B6: ΟΑ ΧΑΛΚΙΔΑΣ
A7: Κατηγορία: | B7: Α14 | D7: 1 2 3 4 11 6 10 12 5 7 8 13 15 14 16 9
A8: Έναρξη: | B8: 15 | D8: 1 2 3 4
A9: Λήξη: | B9: 16 ΜΑΡΤΙΟΥ | D9: 0 0 0 0 0 0 0 0 0 0 0 0 0 0 0 0 0 0 0 0 0 0 0 0 0 0 0 0 0 0 0 0 0 0 0 0 0 0 0 0
A10: Επιδιατητής:
A11: Τηλέφωνο επιδ: | D11: 0 | E11: seed | F11: space pos | G11: Index | H11: Value
D12: =IF(E12="-","-",IF(E12>0,D11+1,0)) -> 1 | E12: =IF(F12>0,VALUE(MID($D$7,1,F12-1)),"-") -> 1 | F12: =IF(LEN($D$7)>1,FIND(" ",$D$7,1),0) -> 2 | G12: 1 | H12: 1
D13: =IF(E13="-","-",IF(E13>0,D12+1,0)) -> 2 | E13: =IF(F13>0,VALUE(MID($D$7,F12+1,F13-F12-1)),"-") -> 2 | F13: =IF(AND(F12>0,LEN($D$7)>F12+1),FIND(" ",$D$7,F12+1),0) -> 4 | G13: 2 | H13: 2
D14: =IF(E14="-","-",IF(E14>0,D13+1,0)) -> 3 | E14: 3 | F14: 6 | G14: 3 | H14: 3
D15: =IF(E15="-","-",IF(E15>0,D14+1,0)) -> 4 | E15: =IF(F15>0,VALUE(MID($D$7,F14+1,F15-F14-1)),"-") -> 4 | F15: 8 | G15: 4 | H15: 4
D16: 5 | E16: =IF(F16>0,VALUE(MID($D$7,F15+1,F16-F15-1)),"-") -> 11 | F16: 11 | G16: 5 | H16: 11
A17: Main Draw | B17: ="("&COUNTBLANK(DrawPrep!D3:D18)&")" -> (0) | D17: 6 | E17: =IF(F17>0,VALUE(MID($D$7,F16+1,F17-F16-1)),"-") -> 6 | F17: 13 | G17: 6 | H17: 6
A18: Πλήθος bye (0-7): | B18: =COUNTBLANK(DrawPrep!D3:D18) -> 0 | D18: 7 | E18: 10 | F18: 16 | G18: 7 | H18: 10
A19: Αριθμός θέσεων seeded: | B19: 4 | D19: 8 | E19: 12 | F19: 19 | G19: 8 | H19: 12
D20: 9 | E20: 5 | F20: 21 | G20: 9 | H20: 5
D21: 10 | E21: 7 | F21: 23 | G21: 10 | H21: 7
D22: 11 | E22: 8 | F22: 25 | G22: 11 | H22: 8
D23: 12 | E23: 13 | F23: 28 | G23: 12 | H23: 13
A24: md (# για off) | B24: ok | D24: 13 | E24: 15 | F24: 31 | G24: 13 | H24: 15
D25: 14 | E25: 14 | F25: 34 | G25: 14 | H25: 14
D26: 15 | E26: 16 | F26: 37 | G26: 15 | H26: 16
A27: =RandUniq(3;4;2) | D27: 16 | E27: 9 | F27: 39 | G27: 16 | H27: 9
A29: =LEFT(D9;$B$18*2)&LEFT(D8;$B$19*2)&RandUniq($B$19+1;16-$B$18;16-$B$19-$B$18)&" "

Sheet DrawPrep
A1: =Setup!$B$3 & ", " & Setup!$B$4 & ", " & Setup!$B$6 & ", " & Setup!$B$8 & "-" & Setup!$B$9 -> Θ ΕΝΩΣΗ, 1οΕ3, ΟΑ ΧΑΛΚΙΔΑΣ, 15-16 ΜΑΡΤΙΟΥ | H1: =Setup!$B$7 -> Α14
A2: α/α | B2: από | C2: Α.Μ. | D2: Ονοματεπώνυμο | E2: Σύλλογος | F2: βαθμοί | G2: Τηλέφωνο | H2: Υπογραφή | I2: SortPts | J2: Rnd | K2: trim
A3: 1 | C3: 30061 | D3: ΑΝΑΓΝΩΣΤΟΠΟΥΛΟΣ ΔΗΜΗΤΡΗΣ | E3: ΟΑ ΚΕΡΑΤΣΙΝΙΟΥ | F3: 84 | I3: =IF(D3>" ",F3+J3,0) -> 84.00259193 | J3: 0.00259192824 | K3: =TRIM(D3) -> ΑΝΑΓΝΩΣΤΟΠΟΥΛΟΣ ΔΗΜΗΤΡΗΣ
A4: 2 | C4: 30060 | D4: ΡΟΥΜΠΗΣ ΑΛΕΞΑΝΔΡΟΣ | E4: ΟΑ ΧΑΛΚΙΔΑΣ | F4: 65.5 | I4: 65.50328963 | J4: 0.003289632376 | K4: ΡΟΥΜΠΗΣ ΑΛΕΞΑΝΔΡΟΣ
A5: 3 | C5: 32742 | D5: ΜΑΝΟΥΣΑΚΗΣ ΔΗΜΗΤΡΗΣ | E5: PALASKASTENNIS | F5: 62 | I5: 62.00298161 | J5: 0.002981610861 | K5: ΜΑΝΟΥΣΑΚΗΣ ΔΗΜΗΤΡΗΣ
A6: 4 | C6: 32220 | D6: ΣΦΙΚΤΗΣ ΠΑΝΑΓΙΩΤΗΣ | E6: Ο.Α. ΠΕΤΡΟΥΠΟΛΗΣ | F6: 45 | I6: 45.00228329 | J6: 0.002283293684 | K6: ΣΦΙΚΤΗΣ ΠΑΝΑΓΙΩΤΗΣ
A7: 5 | C7: 33904 | D7: ΜΟΥΜΤΖΟΓΛΟΥ ΝΙΚΟΣ | E7: Α.Α. ΑΙΓΑΛΕΩ | I7: 0.004088824987 | J7: 0.004088824987 | K7: ΜΟΥΜΤΖΟΓΛΟΥ ΝΙΚΟΣ
A8: 6 | C8: 30180 | D8: ΦΡΑΓΓΙΑΣ ΓΕΩΡΓΙΟΣ | E8: ΟΑ ΧΑΛΚΙΔΑΣ | I8: 0.003667279003 | J8: 0.003667279003 | K8: ΦΡΑΓΓΙΑΣ ΓΕΩΡΓΙΟΣ
A9: 7 | C9: 34841 | D9: ΒΡΕΚΟΣ ΔΗΜΗΤΡΗΣ | E9: PALASKASTENNIS | I9: 0.00357617418 | J9: 0.00357617418 | K9: ΒΡΕΚΟΣ ΔΗΜΗΤΡΗΣ
A10: 8 | C10: 32084 | D10: ΤΣΑΛΑΣ ΓΙΑΝΝΗΣ | E10: Ο.Α. ΑΓΙΩΝ ΑΝΑΡΓΥΡΩΝ | I10: 0.003273604706 | J10: 0.003273604706 | K10: ΤΣΑΛΑΣ ΓΙΑΝΝΗΣ
A11: 9 | C11: 29735 | D11: ΤΑΛΙΟΥΡΗΣ ΓΙΩΡΓΟΣ | E11: ΑΙΟΛΟΣ ΙΛΙΟΥ | I11: 0.002935920333 | J11: 0.002935920333 | K11: ΤΑΛΙΟΥΡΗΣ ΓΙΩΡΓΟΣ
A12: 10 | C12: 29435 | D12: ΤΖΑΘΑΣ ΝΙΚΟΣ | E12: Ο.Α.ΚΑΙΣΑΡΙΑΝΗΣ | I12: 0.002912085276 | J12: 0.002912085276 | K12: ΤΖΑΘΑΣ ΝΙΚΟΣ
A13: 11 | C13: 35341 | D13: ΤΣΙΑΚΑΛΟΣ ΜΙΧΑΗΛ | E13: ΣΑ ΓΑΛΑΤΣΙΟΥ | I13: 0.00238590586 | J13: 0.00238590586 | K13: ΤΣΙΑΚΑΛΟΣ ΜΙΧΑΗΛ
A14: 12 | C14: 30287 | D14: ΝΤΟΥΛΗΣ ΜΙΧΑΛΗΣ | E14: Ο.Α ΣΑΛΑΜΙΝΑΣ | I14: 0.001793142794 | J14: 0.001793142794 | K14: ΝΤΟΥΛΗΣ ΜΙΧΑΛΗΣ
A15: 13 | C15: 35089 | D15: ΚΑΣΤΡΙΤΣΕΑΣ ΑΡΙΣΤΟΦΑΝΗΣ | E15: PALASKASTENNIS | I15: 0.001558252793 | J15: 0.001558252793 | K15: ΚΑΣΤΡΙΤΣΕΑΣ ΑΡΙΣΤΟΦΑΝΗΣ
A16: 14 | C16: 32140 | D16: ΣΑΡΑΝΤΙΝΟΣ ΣΤΡΑΤΗΣ -ΓΡΗΓΟΡΗΣ | E16: ΟΑ ΛΕΣΒΟΥ | I16: 0.001040361317 | J16: 0.001040361317 | K16: ΣΑΡΑΝΤΙΝΟΣ ΣΤΡΑΤΗΣ -ΓΡΗΓΟΡΗΣ
A17: 15 | C17: 34675 | D17: KOTΣΑΝΤΑΣ ΑΝΤΩΝΗΣ | E17: ΟΑ ΧΑΛΚΙΔΑΣ | I17: 0.000586687584 | J17: 0.000586687584 | K17: KOTΣΑΝΤΑΣ ΑΝΤΩΝΗΣ
A18: 16 | C18: 34369 | D18: ΠΡΑΤΙΚΑΚΗΣ ΧΡΗΣΤΟΣ | E18: ΣΑ ΓΑΛΑΤΣΙΟΥ | I18: 0.004439003891 | J18: 0.004439003891 | K18: ΠΡΑΤΙΚΑΚΗΣ ΧΡΗΣΤΟΣ
B20: Walk-over | E20: med
B21: α/α | C21: Α.Μ. | D21: Ονοματεπώνυμο | E21: Ν ή Ο | H21: =Setup!$B$10 -> 0
B22: 1
B23: 2
B24: 3
B25: 4
B26: 5

Sheet Draw
A1: =Setup!B3 & ", " & Setup!B4 & ", " & Setup!B6 & ", " & Setup!B8 & "-" & Setup!B9 -> Θ ΕΝΩΣΗ, 1οΕ3, ΟΑ ΧΑΛΚΙΔΑΣ, 15-16 ΜΑΡΤΙΟΥ | R1: =Setup!B7 -> Α14
B2: =Setup!$B$18 -> 0 | I2: p1 | N2: p2 | P2: p3 | R2: p4-5
J3: 16 | N3: 8 | P3: 4 | R3: 2
A4: α/α | C4: ByeOrder | D4: ByeSum | E4: ByeCnt | F4: από | G4: seed | H4: Pts | I4: Α.Μ. | J4: Ονοματεπώνυμο | K4: επώνυμο | L4: Σύλλογος
A5: 1 | B5: 1 | E5: 0 | F5: =IF(NOT($G5="-"),VLOOKUP($G5,DrawPrep!$A$3:$G$18,2,FALSE),"") -> 0 | G5: =VLOOKUP($B5,Setup!$G$12:$H$27,2,FALSE) -> 1 | H5: =IF($G5>0,VLOOKUP($G5,DrawPrep!$A$3:$G$18,6,FALSE),0) -> 84 | I5: =IF(Setup!$B$24="#",0,IF($G5>0,VLOOKUP($G5,DrawPrep!$A$3:$G$18,3,FALSE),0)) -> 30061 | J5: =IF($I5>0,VLOOKUP($I5,DrawPrep!$C$3:$G$18,2,FALSE),"bye") -> ΑΝΑΓΝΩΣΤΟΠΟΥΛΟΣ ΔΗΜΗΤΡΗΣ | K5: =IF(NOT(I5>0),"", IF(ISERROR(FIND("-",J5)), LEFT(J5,FIND(" ",J5)-1), IF(FIND("-",J5)>FIND(" ",J5),LEFT(J5,FIND(" ",J5)-1), LEFT(J5,FIND("-",J5)-1) ))) -> ΑΝΑΓΝΩΣΤΟΠΟΥΛΟΣ | L5: =IF($I5>0,VLOOKUP($I5,DrawPrep!$C$3:$G$18,3,FALSE),"") -> ΟΑ ΚΕΡΑΤΣΙΝΙΟΥ | M5: 1 | N5: =UPPER(IF($A$2="R",IF(OR(M5=1,M5="a"),I5,IF(OR(M5=2,M5="b"),I6,"")),IF(OR(M5=1,M5="1"),K5,IF(OR(M5=2,M5="b"),K6,"")))) -> ΑΝΑΓΝΩΣΤΟΠΟΥΛΟΣ
A6: 2 | B6: =1-D6+4 -> 5 | C6: 1 | D6: =E6 -> 0 | E6: =IF($B$2>=C6,1,0) -> 0 | F6: =IF(NOT($G6="-"),VLOOKUP($G6,DrawPrep!$A$3:$G$18,2,FALSE),"") -> 0 | G6: =IF($B$2>=C6,"-",VLOOKUP($B6,Setup!$G$12:$H$27,2,FALSE)) -> 11 | H6: =IF(NOT($G6="-"),VLOOKUP($G6,DrawPrep!$A$3:$G$18,6,FALSE),0) -> 0 | I6: =IF(Setup!$B$24="#",0,IF(NOT($G6="-"),VLOOKUP($G6,DrawPrep!$A$3:$G$18,3,FALSE),0)) -> 35341 | J6: =IF($I6>0,VLOOKUP($I6,DrawPrep!$C$3:$G$18,2,FALSE),"bye") -> ΤΣΙΑΚΑΛΟΣ ΜΙΧΑΗΛ | K6: =IF(NOT(I6>0),"", IF(ISERROR(FIND("-",J6)), LEFT(J6,FIND(" ",J6)-1), IF(FIND("-",J6)>FIND(" ",J6),LEFT(J6,FIND(" ",J6)-1), LEFT(J6,FIND("-",J6)-1) ))) -> ΤΣΙΑΚΑΛΟΣ | L6: =IF($I6>0,VLOOKUP($I6,DrawPrep!$C$3:$G$18,3,FALSE),"") -> ΣΑ ΓΑΛΑΤΣΙΟΥ | N6: 60 61 | O6: 1 | P6: =UPPER(IF($A$2="R",IF(OR(O6=1,O6="a"),N5,IF(OR(O6=2,O6="b"),N7,"")),IF(OR(O6=1,O6="a"),N5,IF(OR(O6=2,O6="b"),N7,"")))) -> ΑΝΑΓΝΩΣΤΟΠΟΥΛΟΣ
A7: 3 | B7: =2-D7+4 -> 6 | D7: =D6+E7 -> 0 | E7: 0 | F7: =IF(NOT($G7="-"),VLOOKUP($G7,DrawPrep!$A$3:$G$18,2,FALSE),"") -> 0 | G7: =VLOOKUP($B7,Setup!$G$12:$H$27,2,FALSE) -> 6 | H7: =IF($G7>0,VLOOKUP($G7,DrawPrep!$A$3:$G$18,6,FALSE),0) -> 0 | I7: =IF(Setup!$B$24="#",0,IF($G7>0,VLOOKUP($G7,DrawPrep!$A$3:$G$18,3,FALSE),0)) -> 30180 | J7: =IF($I7>0,VLOOKUP($I7,DrawPrep!$C$3:$G$18,2,FALSE),"bye") -> ΦΡΑΓΓΙΑΣ ΓΕΩΡΓΙΟΣ | K7: ΦΡΑΓΓΙΑΣ | L7: =IF($I7>0,VLOOKUP($I7,DrawPrep!$C$3:$G$18,3,FALSE),"") -> ΟΑ ΧΑΛΚΙΔΑΣ | M7: 1 | N7: =UPPER(IF($A$2="R",IF(OR(M7=1,M7="a"),I7,IF(OR(M7=2,M7="b"),I8,"")),IF(OR(M7=1,M7="a"),K7,IF(OR(M7=2,M7="b"),K8,"")))) -> ΦΡΑΓΓΙΑΣ | P7: 63 61
A8: 4 | B8: =3-D8+4 -> 7 | C8: 7 | D8: 0 | E8: =IF($B$2>=C8,1,0) -> 0 | F8: =IF(NOT($G8="-"),VLOOKUP($G8,DrawPrep!$A$3:$G$18,2,FALSE),"") -> 0 | G8: =IF($B$2>=C8,"-",VLOOKUP($B8,Setup!$G$12:$H$27,2,FALSE)) -> 10 | H8: =IF(NOT($G8="-"),VLOOKUP($G8,DrawPrep!$A$3:$G$18,6,FALSE),0) -> 0 | I8: =IF(Setup!$B$24="#",0,IF(NOT($G8="-"),VLOOKUP($G8,DrawPrep!$A$3:$G$18,3,FALSE),0)) -> 29435 | J8: =IF($I8>0,VLOOKUP($I8,DrawPrep!$C$3:$G$18,2,FALSE),"bye") -> ΤΖΑΘΑΣ ΝΙΚΟΣ | K8: ΤΖΑΘΑΣ | L8: =IF($I8>0,VLOOKUP($I8,DrawPrep!$C$3:$G$18,3,FALSE),"") -> Ο.Α.ΚΑΙΣΑΡΙΑΝΗΣ | N8: 75 63 | Q8: 1 | R8: =UPPER(IF($A$2="R",IF(OR(Q8=1,Q8="a"),P6,IF(OR(Q8=2,Q8="b"),P10,"")),IF(OR(Q8=1,Q8="a"),P6,IF(OR(Q8=2,Q8="b"),P10,"")))) -> ΑΝΑΓΝΩΣΤΟΠΟΥΛΟΣ
A9: 5 | B9: =VALUE(Setup!E2) -> 3 | D9: 0 | E9: 0 | F9: =IF(NOT($G9="-"),VLOOKUP($G9,DrawPrep!$A$3:$G$18,2,FALSE),"") -> 0 | G9: =VLOOKUP($B9,Setup!$G$12:$H$27,2,FALSE) -> 3 | H9: =IF($G9>0,VLOOKUP($G9,DrawPrep!$A$3:$G$18,6,FALSE),0) -> 62 | I9: =IF(Setup!$B$24="#",0,IF($G9>0,VLOOKUP($G9,DrawPrep!$A$3:$G$18,3,FALSE),0)) -> 32742 | J9: =IF($I9>0,VLOOKUP($I9,DrawPrep!$C$3:$G$18,2,FALSE),"bye") -> ΜΑΝΟΥΣΑΚΗΣ ΔΗΜΗΤΡΗΣ | K9: ΜΑΝΟΥΣΑΚΗΣ | L9: =IF($I9>0,VLOOKUP($I9,DrawPrep!$C$3:$G$18,3,FALSE),"") -> PALASKASTENNIS | M9: 1 | N9: =UPPER(IF($A$2="R",IF(OR(M9=1,M9="a"),I9,IF(OR(M9=2,M9="b"),I10,"")),IF(OR(M9=1,M9="a"),K9,IF(OR(M9=2,M9="b"),K10,"")))) -> ΜΑΝΟΥΣΑΚΗΣ | R9: 64 61
A10: 6 | B10: =4-D10+4 -> 8 | C10: =IF(Setup!E2=3,3,4) -> 3 | D10: 0 | E10: =IF($B$2>=C10,1,0) -> 0 | F10: =IF(NOT($G10="-"),VLOOKUP($G10,DrawPrep!$A$3:$G$18,2,FALSE),"") -> 0 | G10: =IF($B$2>=C10,"-",VLOOKUP($B10,Setup!$G$12:$H$27,2,FALSE)) -> 12 | H10: =IF(NOT($G10="-"),VLOOKUP($G10,DrawPrep!$A$3:$G$18,6,FALSE),0) -> 0 | I10: =IF(Setup!$B$24="#",0,IF(NOT($G10="-"),VLOOKUP($G10,DrawPrep!$A$3:$G$18,3,FALSE),0)) -> 30287 | J10: =IF($I10>0,VLOOKUP($I10,DrawPrep!$C$3:$G$18,2,FALSE),"bye") -> ΝΤΟΥΛΗΣ ΜΙΧΑΛΗΣ | K10: ΝΤΟΥΛΗΣ | L10: =IF($I10>0,VLOOKUP($I10,DrawPrep!$C$3:$G$18,3,FALSE),"") -> Ο.Α ΣΑΛΑΜΙΝΑΣ | N10: 1 | O10: 1 | P10: =UPPER(IF($A$2="R",IF(OR(O10=1,O10="a"),N9,IF(OR(O10=2,O10="b"),N11,"")),IF(OR(O10=1,O10="a"),N9,IF(OR(O10=2,O10="b"),N11,"")))) -> ΜΑΝΟΥΣΑΚΗΣ
A11: 7 | B11: =5-D11+4 -> 9 | C11: 5 | D11: 0 | E11: =IF($B$2>=C11,1,0) -> 0 | F11: =IF(NOT($G11="-"),VLOOKUP($G11,DrawPrep!$A$3:$G$18,2,FALSE),"") -> 0 | G11: =IF($B$2>=C11,"-",VLOOKUP($B11,Setup!$G$12:$H$27,2,FALSE)) -> 5 | H11: =IF(NOT($G11="-"),VLOOKUP($G11,DrawPrep!$A$3:$G$18,6,FALSE),0) -> 0 | I11: =IF(Setup!$B$24="#",0,IF(NOT($G11="-"),VLOOKUP($G11,DrawPrep!$A$3:$G$18,3,FALSE),0)) -> 33904 | J11: =IF($I11>0,VLOOKUP($I11,DrawPrep!$C$3:$G$18,2,FALSE),"bye") -> ΜΟΥΜΤΖΟΓΛΟΥ ΝΙΚΟΣ | K11: ΜΟΥΜΤΖΟΓΛΟΥ | L11: =IF($I11>0,VLOOKUP($I11,DrawPrep!$C$3:$G$18,3,FALSE),"") -> Α.Α. ΑΙΓΑΛΕΩ | M11: 2 | N11: =UPPER(IF($A$2="R",IF(OR(M11=1,M11="a"),I11,IF(OR(M11=2,M11="b"),I12,"")),IF(OR(M11=1,M11="a"),K11,IF(OR(M11=2,M11="b"),K12,"")))) -> ΒΡΕΚΟΣ | P11: 60 62
A12: 8 | B12: =6-D12+4 -> 10 | D12: 0 | E12: 0 | F12: =IF(NOT($G12="-"),VLOOKUP($G12,DrawPrep!$A$3:$G$18,2,FALSE),"") -> 0 | G12: =VLOOKUP($B12,Setup!$G$12:$H$27,2,FALSE) -> 7 | H12: =IF($G12>0,VLOOKUP($G12,DrawPrep!$A$3:$G$18,6,FALSE),0) -> 0 | I12: =IF(Setup!$B$24="#",0,IF($G12>0,VLOOKUP($G12,DrawPrep!$A$3:$G$18,3,FALSE),0)) -> 34841 | J12: =IF($I12>0,VLOOKUP($I12,DrawPrep!$C$3:$G$18,2,FALSE),"bye") -> ΒΡΕΚΟΣ ΔΗΜΗΤΡΗΣ | K12: ΒΡΕΚΟΣ | L12: =IF($I12>0,VLOOKUP($I12,DrawPrep!$C$3:$G$18,3,FALSE),"") -> PALASKASTENNIS | N12: 60 61 | Q12: 1 | R12: =UPPER(IF($A$2="R",IF(OR(Q12=1,Q12="a"),R8,IF(OR(Q12=2,Q12="b"),R16,"")),IF(OR(Q12=1,Q12="a"),R8,IF(OR(Q12=2,Q12="b"),R16,"")))) -> ΑΝΑΓΝΩΣΤΟΠΟΥΛΟΣ
A13: 9 | B13: =VALUE(Setup!E3) -> 4 | D13: 0 | E13: 0 | F13: =IF(NOT($G13="-"),VLOOKUP($G13,DrawPrep!$A$3:$G$18,2,FALSE),"") -> 0 | G13: =VLOOKUP($B13,Setup!$G$12:$H$27,2,FALSE) -> 4 | H13: =IF($G13>0,VLOOKUP($G13,DrawPrep!$A$3:$G$18,6,FALSE),0) -> 45 | I13: =IF(Setup!$B$24="#",0,IF($G13>0,VLOOKUP($G13,DrawPrep!$A$3:$G$18,3,FALSE),0)) -> 32220 | J13: =IF($I13>0,VLOOKUP($I13,DrawPrep!$C$3:$G$18,2,FALSE),"bye") -> ΣΦΙΚΤΗΣ ΠΑΝΑΓΙΩΤΗΣ | K13: ΣΦΙΚΤΗΣ | L13: =IF($I13>0,VLOOKUP($I13,DrawPrep!$C$3:$G$18,3,FALSE),"") -> Ο.Α. ΠΕΤΡΟΥΠΟΛΗΣ | M13: 1 | N13: =UPPER(IF($A$2="R",IF(OR(M13=1,M13="a"),I13,IF(OR(M13=2,M13="b"),I14,"")),IF(OR(M13=1,M13="a"),K13,IF(OR(M13=2,M13="b"),K14,"")))) -> ΣΦΙΚΤΗΣ | R13: 60 64
A14: 10 | B14: =7-D14+4 -> 11 | C14: =IF(Setup!E2=3,4,3) -> 4 | D14: 0 | E14: =IF($B$2>=C14,1,0) -> 0 | F14: =IF(NOT($G14="-"),VLOOKUP($G14,DrawPrep!$A$3:$G$18,2,FALSE),"") -> 0 | G14: =IF($B$2>=C14,"-",VLOOKUP($B14,Setup!$G$12:$H$27,2,FALSE)) -> 8 | H14: =IF(NOT($G14="-"),VLOOKUP($G14,DrawPrep!$A$3:$G$18,6,FALSE),0) -> 0 | I14: =IF(Setup!$B$24="#",0,IF(NOT($G14="-"),VLOOKUP($G14,DrawPrep!$A$3:$G$18,3,FALSE),0)) -> 32084 | J14: =IF($I14>0,VLOOKUP($I14,DrawPrep!$C$3:$G$18,2,FALSE),"bye") -> ΤΣΑΛΑΣ ΓΙΑΝΝΗΣ | K14: ΤΣΑΛΑΣ | L14: =IF($I14>0,VLOOKUP($I14,DrawPrep!$C$3:$G$18,3,FALSE),"") -> Ο.Α. ΑΓΙΩΝ ΑΝΑΡΓΥΡΩΝ | N14: 60 60 | O14: 1 | P14: =UPPER(IF($A$2="R",IF(OR(O14=1,O14="a"),N13,IF(OR(O14=2,O14="b"),N15,"")),IF(OR(O14=1,O14="a"),N13,IF(OR(O14=2,O14="b"),N15,"")))) -> ΣΦΙΚΤΗΣ
A15: 11 | B15: =8-D15+4 -> 12 | D15: 0 | E15: 0 | F15: =IF(NOT($G15="-"),VLOOKUP($G15,DrawPrep!$A$3:$G$18,2,FALSE),"") -> 0 | G15: =VLOOKUP($B15,Setup!$G$12:$H$27,2,FALSE) -> 13 | H15: =IF($G15>0,VLOOKUP($G15,DrawPrep!$A$3:$G$18,6,FALSE),0) -> 0 | I15: =IF(Setup!$B$24="#",0,IF($G15>0,VLOOKUP($G15,DrawPrep!$A$3:$G$18,3,FALSE),0)) -> 35089 | J15: =IF($I15>0,VLOOKUP($I15,DrawPrep!$C$3:$G$18,2,FALSE),"bye") -> ΚΑΣΤΡΙΤΣΕΑΣ ΑΡΙΣΤΟΦΑΝΗΣ | K15: ΚΑΣΤΡΙΤΣΕΑΣ | L15: =IF($I15>0,VLOOKUP($I15,DrawPrep!$C$3:$G$18,3,FALSE),"") -> PALASKASTENNIS | M15: 1 | N15: =UPPER(IF($A$2="R",IF(OR(M15=1,M15="a"),I15,IF(OR(M15=2,M15="b"),I16,"")),IF(OR(M15=1,M15="a"),K15,IF(OR(M15=2,M15="b"),K16,"")))) -> ΚΑΣΤΡΙΤΣΕΑΣ | P15: 61 62
A16: 12 | B16: =9-D16+4 -> 13 | C16: 6 | D16: 0 | E16: =IF($B$2>=C16,1,0) -> 0 | F16: =IF(NOT($G16="-"),VLOOKUP($G16,DrawPrep!$A$3:$G$18,2,FALSE),"") -> 0 | G16: =IF($B$2>=C16,"-",VLOOKUP($B16,Setup!$G$12:$H$27,2,FALSE)) -> 15 | H16: =IF(NOT($G16="-"),VLOOKUP($G16,DrawPrep!$A$3:$G$18,6,FALSE),0) -> 0 | I16: =IF(Setup!$B$24="#",0,IF(NOT($G16="-"),VLOOKUP($G16,DrawPrep!$A$3:$G$18,3,FALSE),0)) -> 34675 | J16: =IF($I16>0,VLOOKUP($I16,DrawPrep!$C$3:$G$18,2,FALSE),"bye") -> KOTΣΑΝΤΑΣ ΑΝΤΩΝΗΣ | K16: KOTΣΑΝΤΑΣ | L16: =IF($I16>0,VLOOKUP($I16,DrawPrep!$C$3:$G$18,3,FALSE),"") -> ΟΑ ΧΑΛΚΙΔΑΣ | N16: 63 61 | Q16: 1 | R16: =UPPER(IF($A$2="R",IF(OR(Q16=1,Q16="a"),P14,IF(OR(Q16=2,Q16="b"),P18,"")),IF(OR(Q16=1,Q16="a"),P14,IF(OR(Q16=2,Q16="b"),P18,"")))) -> ΣΦΙΚΤΗΣ
A17: 13 | B17: =10-D17+4 -> 14 | D17: 0 | E17: 0 | F17: =IF(NOT($G17="-"),VLOOKUP($G17,DrawPrep!$A$3:$G$18,2,FALSE),"") -> 0 | G17: =VLOOKUP($B17,Setup!$G$12:$H$27,2,FALSE) -> 14 | H17: =IF($G17>0,VLOOKUP($G17,DrawPrep!$A$3:$G$18,6,FALSE),0) -> 0 | I17: =IF(Setup!$B$24="#",0,IF($G17>0,VLOOKUP($G17,DrawPrep!$A$3:$G$18,3,FALSE),0)) -> 32140 | J17: =IF($I17>0,VLOOKUP($I17,DrawPrep!$C$3:$G$18,2,FALSE),"bye") -> ΣΑΡΑΝΤΙΝΟΣ ΣΤΡΑΤΗΣ -ΓΡΗΓΟΡΗΣ | K17: ΣΑΡΑΝΤΙΝΟΣ | L17: =IF($I17>0,VLOOKUP($I17,DrawPrep!$C$3:$G$18,3,FALSE),"") -> ΟΑ ΛΕΣΒΟΥ | M17: 1 | N17: =UPPER(IF($A$2="R",IF(OR(M17=1,M17="a"),I17,IF(OR(M17=2,M17="b"),I18,"")),IF(OR(M17=1,M17="a"),K17,IF(OR(M17=2,M17="b"),K18,"")))) -> ΣΑΡΑΝΤΙΝΟΣ | R17: 06 64 76(4)
A18: 14 | B18: =11-D18+4 -> 15 | C18: 8 | D18: 0 | E18: =IF($B$2>=C18,1,0) -> 0 | F18: =IF(NOT($G18="-"),VLOOKUP($G18,DrawPrep!$A$3:$G$18,2,FALSE),"") -> 0 | G18: =IF($B$2>=C18,"-",VLOOKUP($B18,Setup!$G$12:$H$27,2,FALSE)) -> 16 | H18: =IF(NOT($G18="-"),VLOOKUP($G18,DrawPrep!$A$3:$G$18,6,FALSE),0) -> 0 | I18: =IF(Setup!$B$24="#",0,IF(NOT($G18="-"),VLOOKUP($G18,DrawPrep!$A$3:$G$18,3,FALSE),0)) -> 34369 | J18: =IF($I18>0,VLOOKUP($I18,DrawPrep!$C$3:$G$18,2,FALSE),"bye") -> ΠΡΑΤΙΚΑΚΗΣ ΧΡΗΣΤΟΣ | K18: ΠΡΑΤΙΚΑΚΗΣ | L18: =IF($I18>0,VLOOKUP($I18,DrawPrep!$C$3:$G$18,3,FALSE),"") -> ΣΑ ΓΑΛΑΤΣΙΟΥ | N18: 61 60 | O18: 2 | P18: =UPPER(IF($A$2="R",IF(OR(O18=1,O18="a"),N17,IF(OR(O18=2,O18="b"),N19,"")),IF(OR(O18=1,O18="a"),N17,IF(OR(O18=2,O18="b"),N19,"")))) -> ΡΟΥΜΠΗΣ
A19: 15 | B19: =12-D19+4 -> 16 | C19: 2 | D19: 0 | E19: =IF($B$2>=C19,1,0) -> 0 | F19: =IF(NOT($G19="-"),VLOOKUP($G19,DrawPrep!$A$3:$G$18,2,FALSE),"") -> 0 | G19: =IF($B$2>=C19,"-",VLOOKUP($B19,Setup!$G$12:$H$27,2,FALSE)) -> 9 | H19: =IF(NOT($G19="-"),VLOOKUP($G19,DrawPrep!$A$3:$G$18,6,FALSE),0) -> 0 | I19: =IF(Setup!$B$24="#",0,IF(NOT($G19="-"),VLOOKUP($G19,DrawPrep!$A$3:$G$18,3,FALSE),0)) -> 29735 | J19: =IF($I19>0,VLOOKUP($I19,DrawPrep!$C$3:$G$18,2,FALSE),"bye") -> ΤΑΛΙΟΥΡΗΣ ΓΙΩΡΓΟΣ | K19: ΤΑΛΙΟΥΡΗΣ | L19: =IF($I19>0,VLOOKUP($I19,DrawPrep!$C$3:$G$18,3,FALSE),"") -> ΑΙΟΛΟΣ ΙΛΙΟΥ | M19: 2 | N19: =UPPER(IF($A$2="R",IF(OR(M19=1,M19="a"),I19,IF(OR(M19=2,M19="b"),I20,"")),IF(OR(M19=1,M19="a"),K19,IF(OR(M19=2,M19="b"),K20,"")))) -> ΡΟΥΜΠΗΣ | P19: 60 61
A20: 16 | B20: 2 | D20: 0 | E20: 0 | F20: =IF(NOT($G20="-"),VLOOKUP($G20,DrawPrep!$A$3:$G$18,2,FALSE),"") -> 0 | G20: =VLOOKUP($B20,Setup!$G$12:$H$27,2,FALSE) -> 2 | H20: =IF($G20>0,VLOOKUP($G20,DrawPrep!$A$3:$G$18,6,FALSE),0) -> 65.5 | I20: =IF(Setup!$B$24="#",0,IF($G20>0,VLOOKUP($G20,DrawPrep!$A$3:$G$18,3,FALSE),0)) -> 30060 | J20: =IF($I20>0,VLOOKUP($I20,DrawPrep!$C$3:$G$18,2,FALSE),"bye") -> ΡΟΥΜΠΗΣ ΑΛΕΞΑΝΔΡΟΣ | K20: ΡΟΥΜΠΗΣ | L20: =IF($I20>0,VLOOKUP($I20,DrawPrep!$C$3:$G$18,3,FALSE),"") -> ΟΑ ΧΑΛΚΙΔΑΣ | N20: 61 60
J24: seeded players
J25: ="1. " & IF(Setup!B19>0,LEFT(DrawPrep!D3,FIND(" ",DrawPrep!D3)+1),"") -> 1. ΑΝΑΓΝΩΣΤΟΠΟΥΛΟΣ Δ
J26: ="2. " & IF(Setup!B19>1,LEFT(DrawPrep!D4,FIND(" ",DrawPrep!D4)+1),"") -> 2. ΡΟΥΜΠΗΣ Α | R26: επιδιαιτητής
J27: ="3. " & IF(Setup!B19>2,LEFT(DrawPrep!D5,FIND(" ",DrawPrep!D5)+1),"") -> 3. ΜΑΝΟΥΣΑΚΗΣ Δ | R27: =Setup!B10 -> 0
J28: ="4. " & IF(Setup!B19>3,LEFT(DrawPrep!D6,FIND(" ",DrawPrep!D6)+1),"") -> 4. ΣΦΙΚΤΗΣ Π
J40: BoldPlayers
J41: =IF(Setup!$B$19>0,LEFT(DrawPrep!D3,FIND(" ",DrawPrep!D3)-1)) -> ΑΝΑΓΝΩΣΤΟΠΟΥΛΟΣ
J42: =IF(Setup!$B$19>1,LEFT(DrawPrep!D4,FIND(" ",DrawPrep!D4)-1)) -> ΡΟΥΜΠΗΣ
J43: =IF(Setup!$B$19>2,LEFT(DrawPrep!D5,FIND(" ",DrawPrep!D5)-1)) -> ΜΑΝΟΥΣΑΚΗΣ
J44: =IF(Setup!$B$19>3,LEFT(DrawPrep!D6,FIND(" ",DrawPrep!D6)-1)) -> ΣΦΙΚΤΗΣ

Sheet PrgPrep
A1: =Setup!B3 & ", " & Setup!B4 & ", " & Setup!B6 & " (" & Setup!B7 & ")" -> Θ ΕΝΩΣΗ, 1οΕ3, ΟΑ ΧΑΛΚΙΔΑΣ (Α14) | G1: Don't Change this Worksheet !
A2: =Setup!$B$10 -> 0
A3: Πρόγραμμα αγώνων | E3: Round 1 | F3: i
A4: ΩΡΑ | B4: Κτγρ. | C4: Αθλητής-Σύλλογος | E4: Αθλητής-Σύλλογος
A5: Έναρξη | B5: =Setup!$B$7 -> Α14 | C5: =IF(OR(Draw!J5="bye",Draw!J5="LWD"), "",CONCATENATE(LEFT(Draw!J5,FIND(" ",Draw!J5)+1)," (",Draw!L5,")")) -> ΑΝΑΓΝΩΣΤΟΠΟΥΛΟΣ Δ (ΟΑ ΚΕΡΑΤΣΙΝΙΟΥ) | D5: =IF(OR(C5="",E5="")," ","-") -> - | E5: =IF(OR(Draw!J6="bye",Draw!J6="LWD"), "",CONCATENATE(LEFT(Draw!J6,FIND(" ",Draw!J6)+1)," (",Draw!L6,")")) -> ΤΣΙΑΚΑΛΟΣ Μ (ΣΑ ΓΑΛΑΤΣΙΟΥ)
B6: =Setup!$B$7 -> Α14 | C6: =IF(OR(Draw!J7="bye",Draw!J7="LWD"), "",CONCATENATE(LEFT(Draw!J7,FIND(" ",Draw!J7)+1)," (",Draw!L7,")")) -> ΦΡΑΓΓΙΑΣ Γ (ΟΑ ΧΑΛΚΙΔΑΣ) | D6: =IF(OR(C6="",E6="")," ","-") -> - | E6: =IF(OR(Draw!J8="bye",Draw!J8="LWD"), "",CONCATENATE(LEFT(Draw!J8,FIND(" ",Draw!J8)+1)," (",Draw!L8,")")) -> ΤΖΑΘΑΣ Ν (Ο.Α.ΚΑΙΣΑΡΙΑΝΗΣ)
B7: =Setup!$B$7 -> Α14 | C7: =IF(OR(Draw!J9="bye",Draw!J9="LWD"), "",CONCATENATE(LEFT(Draw!J9,FIND(" ",Draw!J9)+1)," (",Draw!L9,")")) -> ΜΑΝΟΥΣΑΚΗΣ Δ (PALASKASTENNIS) | D7: - | E7: =IF(OR(Draw!J10="bye",Draw!J10="LWD"), "",CONCATENATE(LEFT(Draw!J10,FIND(" ",Draw!J10)+1)," (",Draw!L10,")")) -> ΝΤΟΥΛΗΣ Μ (Ο.Α ΣΑΛΑΜΙΝΑΣ)
B8: =Setup!$B$7 -> Α14 | C8: =IF(OR(Draw!J11="bye",Draw!J11="LWD"), "",CONCATENATE(LEFT(Draw!J11,FIND(" ",Draw!J11)+1)," (",Draw!L11,")")) -> ΜΟΥΜΤΖΟΓΛΟΥ Ν (Α.Α. ΑΙΓΑΛΕΩ) | D8: - | E8: =IF(OR(Draw!J12="bye",Draw!J12="LWD"), "",CONCATENATE(LEFT(Draw!J12,FIND(" ",Draw!J12)+1)," (",Draw!L12,")")) -> ΒΡΕΚΟΣ Δ (PALASKASTENNIS)
A9: όχι πριν | B9: =Setup!$B$7 -> Α14 | C9: =IF(OR(Draw!J13="bye",Draw!J13="LWD"), "",CONCATENATE(LEFT(Draw!J13,FIND(" ",Draw!J13)+1)," (",Draw!L13,")")) -> ΣΦΙΚΤΗΣ Π (Ο.Α. ΠΕΤΡΟΥΠΟΛΗΣ) | D9: - | E9: =IF(OR(Draw!J14="bye",Draw!J14="LWD"), "",CONCATENATE(LEFT(Draw!J14,FIND(" ",Draw!J14)+1)," (",Draw!L14,")")) -> ΤΣΑΛΑΣ Γ (Ο.Α. ΑΓΙΩΝ ΑΝΑΡΓΥΡΩΝ)
B10: =Setup!$B$7 -> Α14 | C10: =IF(OR(Draw!J15="bye",Draw!J15="LWD"), "",CONCATENATE(LEFT(Draw!J15,FIND(" ",Draw!J15)+1)," (",Draw!L15,")")) -> ΚΑΣΤΡΙΤΣΕΑΣ Α (PALASKASTENNIS) | D10: - | E10: =IF(OR(Draw!J16="bye",Draw!J16="LWD"), "",CONCATENATE(LEFT(Draw!J16,FIND(" ",Draw!J16)+1)," (",Draw!L16,")")) -> KOTΣΑΝΤΑΣ Α (ΟΑ ΧΑΛΚΙΔΑΣ)
B11: =Setup!$B$7 -> Α14 | C11: =IF(OR(Draw!J17="bye",Draw!J17="LWD"), "",CONCATENATE(LEFT(Draw!J17,FIND(" ",Draw!J17)+1)," (",Draw!L17,")")) -> ΣΑΡΑΝΤΙΝΟΣ Σ (ΟΑ ΛΕΣΒΟΥ) | D11: - | E11: =IF(OR(Draw!J18="bye",Draw!J18="LWD"), "",CONCATENATE(LEFT(Draw!J18,FIND(" ",Draw!J18)+1)," (",Draw!L18,")")) -> ΠΡΑΤΙΚΑΚΗΣ Χ (ΣΑ ΓΑΛΑΤΣΙΟΥ)
B12: =Setup!$B$7 -> Α14 | C12: =IF(OR(Draw!J19="bye",Draw!J19="LWD"), "",CONCATENATE(LEFT(Draw!J19,FIND(" ",Draw!J19)+1)," (",Draw!L19,")")) -> ΤΑΛΙΟΥΡΗΣ Γ (ΑΙΟΛΟΣ ΙΛΙΟΥ) | D12: - | E12: =IF(OR(Draw!J20="bye",Draw!J20="LWD"), "",CONCATENATE(LEFT(Draw!J20,FIND(" ",Draw!J20)+1)," (",Draw!L20,")")) -> ΡΟΥΜΠΗΣ Α (ΟΑ ΧΑΛΚΙΔΑΣ)
A18: Πρόγραμμα αγώνων | E18: Round 2 | F18: i
A19: ΩΡΑ | B19: Κτγρ. | C19: Αθλητής-Σύλλογος | E19: Αθλητής-Σύλλογος
A20: Έναρξη | B20: =Setup!$B$7 -> Α14 | C20: =IF(Draw!M5="", "", IF(Draw!M5=1, CONCATENATE(LEFT(Draw!J5,FIND(" ",Draw!J5)+1)," (",Draw!L5,")"),CONCATENATE(LEFT(Draw!J6,FIND(" ",Draw!J6)+1)," (",Draw!L6,")"))) -> ΑΝΑΓΝΩΣΤΟΠΟΥΛΟΣ Δ (ΟΑ ΚΕΡΑΤΣΙΝΙΟΥ) | D20: =IF(OR(C20="",E20="")," ","-") -> - | E20: =IF(Draw!M7="", "", IF(Draw!M7=1, CONCATENATE(LEFT(Draw!J7,FIND(" ",Draw!J7)+1)," (",Draw!L7,")"),CONCATENATE(LEFT(Draw!J8,FIND(" ",Draw!J8)+1)," (",Draw!L8,")"))) -> ΦΡΑΓΓΙΑΣ Γ (ΟΑ ΧΑΛΚΙΔΑΣ)
B21: =Setup!$B$7 -> Α14 | C21: =IF(Draw!M9="", "", IF(Draw!M9=1, CONCATENATE(LEFT(Draw!J9,FIND(" ",Draw!J9)+1)," (",Draw!L9,")"),CONCATENATE(LEFT(Draw!J10,FIND(" ",Draw!J10)+1)," (",Draw!L10,")"))) -> ΜΑΝΟΥΣΑΚΗΣ Δ (PALASKASTENNIS) | D21: =IF(OR(C21="",E21="")," ","-") -> - | E21: =IF(Draw!M11="", "", IF(Draw!M11=1, CONCATENATE(LEFT(Draw!J11,FIND(" ",Draw!J11)+1)," (",Draw!L11,")"),CONCATENATE(LEFT(Draw!J12,FIND(" ",Draw!J12)+1)," (",Draw!L12,")"))) -> ΒΡΕΚΟΣ Δ (PALASKASTENNIS)
B22: =Setup!$B$7 -> Α14 | C22: =IF(Draw!M13="", "", IF(Draw!M13=1, CONCATENATE(LEFT(Draw!J13,FIND(" ",Draw!J13)+1)," (",Draw!L13,")"),CONCATENATE(LEFT(Draw!J14,FIND(" ",Draw!J14)+1)," (",Draw!L14,")"))) -> ΣΦΙΚΤΗΣ Π (Ο.Α. ΠΕΤΡΟΥΠΟΛΗΣ) | D22: =IF(OR(C22="",E22="")," ","-") -> - | E22: =IF(Draw!M15="", "", IF(Draw!M15=1, CONCATENATE(LEFT(Draw!J15,FIND(" ",Draw!J15)+1)," (",Draw!L15,")"),CONCATENATE(LEFT(Draw!J16,FIND(" ",Draw!J16)+1)," (",Draw!L16,")"))) -> ΚΑΣΤΡΙΤΣΕΑΣ Α (PALASKASTENNIS)
B23: =Setup!$B$7 -> Α14 | C23: =IF(Draw!M17="", "", IF(Draw!M17=1, CONCATENATE(LEFT(Draw!J17,FIND(" ",Draw!J17)+1)," (",Draw!L17,")"),CONCATENATE(LEFT(Draw!J18,FIND(" ",Draw!J18)+1)," (",Draw!L18,")"))) -> ΣΑΡΑΝΤΙΝΟΣ Σ (ΟΑ ΛΕΣΒΟΥ) | D23: =IF(OR(C23="",E23="")," ","-") -> - | E23: =IF(Draw!M19="", "", IF(Draw!M19=1, CONCATENATE(LEFT(Draw!J19,FIND(" ",Draw!J19)+1)," (",Draw!L19,")"),CONCATENATE(LEFT(Draw!J20,FIND(" ",Draw!J20)+1)," (",Draw!L20,")"))) -> ΡΟΥΜΠΗΣ Α (ΟΑ ΧΑΛΚΙΔΑΣ)
A24: όχι πριν
A30: Don't Change this Worksheet !

Sheet Day1
A1: =Setup!B3 & ", " & Setup!B4 & ", " & Setup!B6 & " (" & Setup!B7 & ")" -> Θ ΕΝΩΣΗ, 1οΕ3, ΟΑ ΧΑΛΚΙΔΑΣ (Α14)
A2: =Setup!$B$10 -> 0
A3: Πρόγραμμα αγώνων | E3: Round 1 | F3: i
A4: ΩΡΑ | B4: Κτγρ. | C4: Αθλητής-Σύλλογος | E4: Αθλητής-Σύλλογος
A5: 09.30 | B5: Α14 | C5: ΑΝΑΓΝΩΣΤΟΠΟΥΛΟΣ | E5: ΦΡΑΓΓΙΑΣ
B6: Α14 | C6: ΣΦΙΚΤΗΣ | E6: ΚΟΤΣΑΝΤΑΣ
B7: Α14 | C7: ΣΑΡΑΝΤΙΝΟΣ | E7: ΡΟΥΜΠΗΣ
B8: Κ14 | C8: ΣΤΑΜΑΤΟΓΙΑΝΝΟΠΟΥΛΟΥ | E8: ΤΣΕΣΜΕΤΖΗ
B9: Κ14 | C9: ΜΑΥΡΟΓΙΑΝΝΑΚΗ | E9: ΓΡΙΒΑ
A10: 11.ΟΟ
B11: Κ14 | C11: ΤΣΑΔΑΡΗ | E11: ΚΩΣΤΑΝΤΟΠΟΥΛΟΥ
B12: Κ14 | C12: ΠΟΣΤΑΤΖΙΑΝ | E12: ΚΩΣΤΑ ΦΩΤΗ
B13: Κ12 | C13: ΖΑΧΑΡΑΚΗ | E13: ΠΑΠΑΣΩΤΗΡΙΟΥ
B14: Κ12 | C14: ΑΔΑΜΟΠΟΥΛΟΥ | E14: ΑΔΑΜΟΠΟΥΛΟΥ
A15: 12.30
B16: Α16 | C16: ΠΙΤΣΙΝΗΣ | E16: ΤΖΩΡΤΖΗΣ
B17: Α16 | C17: ΣΠΗΛΙΩΤΟΠΟΥΛΟΣ | E17: ΖΕΡΔΙΛΑΣ
B18: Κ16 | C18: ΓΡΙΒΑ | E18: ΜΠΟΜΠΟΛΑΚΗ
B19: Κ16 | C19: ΓΕΩΡΓΟΠΟΥΛΟΥ | E19: ΤΣΙΑΡΑ
A21: 13.30 | B21: Α12 | C21: ΧΡΙΣΤΑΝΑΣ | E21: ΣΠΗΛΙΩΤΟΠΟΥΛΟΣ
B22: Α12 | C22: ΖΑΧΙΩΤΗΣ | E22: ΚΑΡΑΜΑΝΗΣ

Sheet Day2
A1: =Setup!B3 & ", " & Setup!B4 & ", " & Setup!B6 & " (" & Setup!B7 & ")" -> Θ ΕΝΩΣΗ, 1οΕ3, ΟΑ ΧΑΛΚΙΔΑΣ (Α14)
A2: =Setup!$B$10 -> 0
A3: Πρόγραμμα αγώνων | E3: Round 2 | F3: i
A4: ΩΡΑ | B4: Κτγρ. | C4: Αθλητής-Σύλλογος | E4: Αθλητής-Σύλλογος
A5: Έναρξη | B5: Α12
B6: Α12
B7: Α12
B8: Α12
A9: όχι πριν

Sheet notes

Sheet tmp
A1: RndIndx | B1: random | C1: FixRandom | E1: α/α | F1: seed | G1: ByeOrder | I1: ΠΡΟΚΡΙΜΑΤΙΚΑ E1, E2 (32 για 8)
A2: 1 | B2: =RAND()/222 -> 0.001648608097 | C2: 0.00259192824 | E2: 1 | F2: 1 | K2: 17-32 | L2: 9-16 | M2: 5-8 | N2: 3-4 | O2: 2ος | P2: 1ος | S2: 17-32 | T2: 9-16 | U2: 5-8 | V2: 3-4 | W2: 2ος | X2: 1ος
A3: 2 | B3: =RAND()/222 -> 0.003916338449 | C3: 0.003289632376 | E3: 2 | G3: 1 | I3: E1 | J3: E1-12 | K3: 1 | L3: 2 | M3: 2 | N3: 0 | O3: 0 | P3: 0 | Q3: E1 | R3: E1-12 | S3: 1 | T3: 1 | U3: 0 | V3: 0 | W3: 0 | X3: 0
A4: 3 | B4: =RAND()/222 -> 0.0008238290391 | C4: 0.002981610861 | E4: 3 | J4: E1-14 | K4: 3 | L4: 4 | M4: 4 | N4: 0 | O4: 0 | P4: 0 | R4: E1-14 | S4: 3 | T4: 1 | U4: 0 | V4: 0 | W4: 0 | X4: 0
A5: 4 | B5: =RAND()/222 -> 0.0002600809642 | C5: 0.002283293684 | E5: 4 | G5: 7 | J5: E1-16 | K5: 6 | L5: 8 | M5: 8 | N5: 0 | O5: 0 | P5: 0 | R5: E1-16 | S5: 6 | T5: 2 | U5: 0 | V5: 0 | W5: 0 | X5: 0
A6: 5 | B6: =RAND()/222 -> 0.003261379828 | C6: 0.001040361317 | E6: 5 | F6: 3 | J6: E1-18 | K6: 7.5 | L6: 10 | M6: 10 | R6: E1-18 | S6: 7.5 | T6: 2.5 | U6: 0 | V6: 0 | W6: 0 | X6: 0
A7: 6 | B7: =RAND()/222 -> 0.0001437029036 | C7: 0.00357617418 | E7: 6 | G7: 3 | I7: E2 | J7: E2-12 | K7: 0.3 | L7: 0.5 | M7: 0.5 | N7: 0 | O7: 0 | P7: 0 | Q7: E2 | R7: E2-12 | S7: 0.3 | T7: 0.2 | U7: 0 | V7: 0 | W7: 0 | X7: 0
A8: 7 | B8: 0.004087547523 | C8: 0.004088824987 | E8: 7 | G8: 5 | J8: E2-14 | K8: 1 | L8: 2 | M8: 2 | N8: 0 | O8: 0 | P8: 0 | R8: E2-14 | S8: 1 | T8: 1 | U8: 0 | V8: 0 | W8: 0 | X8: 0
A9: 8 | B9: 0.003917676898 | C9: 0.003273604706 | E9: 8 | J9: E2-16 | K9: 2 | L9: 4 | M9: 4 | N9: 0 | O9: 0 | P9: 0 | R9: E2-16 | S9: 2 | T9: 2 | U9: 0 | V9: 0 | W9: 0 | X9: 0
A10: 9 | B10: 0.003183046194 | C10: 0.003667279003 | E10: 9 | F10: 4
A11: 10 | B11: 0.003789111575 | C11: 0.001558252793 | E11: 10 | G11: 4
A12: 11 | B12: 0.003090414071 | C12: 0.001793142794 | E12: 11 | I12: ΚΥΡΙΩΣ ΤΑΜΠΛΟ E1, E2 & E3
A13: 12 | B13: 0.003207939919 | C13: 0.000586687584 | E13: 12 | G13: 6 | K13: 17-32 | L13: 9-16 | M13: 5-8 | N13: 3-4 | O13: 2ος | P13: 1ος | S13: 17-32 | T13: 9-16 | U13: 5-8 | V13: 3-4 | W13: 2ος | X13: 1ος
A14: 13 | B14: 0.003311739621 | C14: 0.00238590586 | E14: 13 | I14: E1 | J14: E1-12 | K14: 7 | L14: 10 | M14: 14 | N14: 21 | O14: 35 | P14: 42 | Q14: E1 | R14: E1-12 | S14: 7 | T14: 3 | U14: 4 | V14: 7 | W14: 14 | X14: 7
A15: 14 | B15: 0.003553883472 | C15: 0.002935920333 | E15: 14 | G15: 8 | J15: E1-14 | K15: 10 | L15: 15 | M15: 20 | N15: 30 | O15: 50 | P15: 60 | R15: E1-14 | S15: 10 | T15: 5 | U15: 5 | V15: 10 | W15: 20 | X15: 10
A16: 15 | B16: 0.003171471811 | C16: 0.002912085276 | E16: 15 | G16: 2 | J16: E1-16 | K16: 20 | L16: 30 | M16: 40 | N16: 60 | O16: 100 | P16: 120 | R16: E1-16 | S16: 20 | T16: 10 | U16: 10 | V16: 20 | W16: 40 | X16: 20
A17: 16 | B17: 0.003189938334 | C17: 0.004439003891 | E17: 16 | F17: 2 | J17: E1-18 | K17: 25 | L17: 37 | M17: 50 | N17: 75 | O17: 125 | P17: 150 | R17: E1-18 | S17: 25 | T17: 12 | U17: 13 | V17: 25 | W17: 50 | X17: 25
I18: E2 | J18: E2-12 | K18: 4 | L18: 5 | M18: 7 | N18: 10 | O18: 15 | P18: 18 | Q18: E2 | R18: E2-12 | S18: 4 | T18: 1 | U18: 2 | V18: 3 | W18: 5 | X18: 3
J19: E2-14 | K19: 5 | L19: 8 | M19: 10 | N19: 15 | O19: 25 | P19: 30 | R19: E2-14 | S19: 5 | T19: 3 | U19: 2 | V19: 5 | W19: 10 | X19: 5
J20: E2-16 | K20: 10 | L20: 15 | M20: 20 | N20: 30 | O20: 50 | P20: 60 | R20: E2-16 | S20: 10 | T20: 5 | U20: 5 | V20: 10 | W20: 20 | X20: 10
I21: E3 | J21: E3-12 | K21: 0.5 | L21: 2 | M21: 3 | N21: 4 | O21: 7 | P21: 8 | Q21: E3 | R21: E3-12 | S21: 0.5 | T21: 1.5 | U21: 1 | V21: 1 | W21: 3 | X21: 1
J22: E3-14 | K22: 2 | L22: 3 | M22: 4 | N22: 6 | O22: 10 | P22: 12 | R22: E3-14 | S22: 2 | T22: 1 | U22: 1 | V22: 2 | W22: 4 | X22: 2
J23: E3-16 | K23: 4 | L23: 6 | M23: 8 | N23: 12 | O23: 20 | P23: 24 | R23: E3-16 | S23: 4 | T23: 2 | U23: 2 | V23: 4 | W23: 8 | X23: 4
J26: ΔΙΠΛΑ E1, E2
L27: 9-16 | M27: 5-8 | N27: 3-4 | O27: 2ος | P27: 1ος | S27: 9-16 | T27: 5-8 | U27: 3-4 | V27: 2ος | W27: 1ος
J28: E1 | K28: E1-12 | L28: 3 | M28: 4 | N28: 5 | O28: 9 | P28: 11 | Q28: E1 | R28: E1-12 | S28: 3 | T28: 1 | U28: 1 | V28: 4 | W28: 2
K29: E1-14 | L29: 4 | M29: 5 | N29: 8 | O29: 13 | P29: 15 | R29: E1-14 | S29: 4 | T29: 1 | U29: 3 | V29: 5 | W29: 2
K30: E1-16 | L30: 8 | M30: 10 | N30: 15 | O30: 25 | P30: 30 | R30: E1-16 | S30: 8 | T30: 2 | U30: 5 | V30: 10 | W30: 5
K31: E1-18 | L31: 9 | M31: 12 | N31: 19 | O31: 31 | P31: 37 | R31: E1-18 | S31: 9 | T31: 3 | U31: 7 | V31: 12 | W31: 6
J32: E2 | K32: E2-12 | L32: 1 | M32: 2 | N32: 3 | O32: 4 | P32: 8 | Q32: E2 | R32: E2-12 | S32: 1 | T32: 1 | U32: 1 | V32: 1 | W32: 4
K33: E2-14 | L33: 2 | M33: 3 | N33: 4 | O33: 6 | P33: 8 | R33: E2-14 | S33: 2 | T33: 1 | U33: 1 | V33: 2 | W33: 2
K34: E2-16 | L34: 4 | M34: 6 | N34: 8 | O34: 12 | P34: 16 | R34: E2-16 | S34: 4 | T34: 2 | U34: 2 | V34: 4 | W34: 4

Sheet tmpRankings
A1: ΑΜ | B1: Ονοματεπώνυμο | C1: Γεν. | D1: Σύλλογος | E1: Βαθμ
G2: =VLOOKUP(c3;tmpRankings!$A$2:$E$251;5;FALSE)
